bitfinex-derivatives/quotes_BNBF0:USTF0_20250221
["timestamp","ask_amount","ask_price","bid_price","bid_amount"]
[1740133836205,2.23611386,662.77,661.81,0.30220153]
[1740133837411,1.57631898,662.76,661.81,0.30220153]
[1740133869332,1.57631898,662.76,661.85,1.10003851]
[1740133869632,1.57631898,662.76,661.86,0.3021787]
[1740133876128,0.954,663.15,661.86,0.3021787]
[1740133880941,2.23537029,663.14,661.86,0.3021787]
[1740133882637,0.954,663.15,661.86,0.3021787]
[1740133884243,2.23537029,663.69,661.86,0.3021787]
[1740133884443,0.30135458,663.67,661.86,0.3021787]
[1740133886642,1.57518332,663.66,661.86,0.3021787]
[1740133886839,0.30136367,663.65,661.86,0.3021787]
[1740133887947,3.11726799,663.64,661.86,0.3021787]
[1740133888151,3.11726799,663.63,661.86,0.3021787]
[1740133888349,5.35263828,663.62,661.86,0.3021787]
[1740133888649,3.11726799,663.61,661.86,0.3021787]
[1740133888849,3.11726799,663.6,661.86,0.3021787]
[1740133889042,3.11726799,663.59,661.86,0.3021787]
[1740133889241,3.11726799,663.58,661.86,0.3021787]
[1740133889446,3.11726799,663.57,661.86,0.3021787]
[1740133889649,3.11726799,663.56,661.86,0.3021787]
[1740133889843,3.11726799,663.55,661.86,0.3021787]
[1740133890049,0.30136367,663.65,661.86,0.3021787]
[1740133890050,5.35263828,663.54,661.86,0.3021787]
[1740133890246,3.11726799,663.53,661.86,0.3021787]
[1740133890446,3.11726799,663.52,661.86,0.3021787]
[1740133890649,3.11726799,663.51,661.86,0.3021787]
[1740133890844,2.23537029,663.54,661.86,0.3021787]
[1740133891450,2.53678846,663.53,661.86,0.3021787]
[1740133891849,0.30142271,663.52,661.86,0.3021787]
[1740133893851,1.293,663.51,661.86,0.3021787]
[1740133894155,0.3014318,663.5,661.86,0.3021787]
[1740133896853,1.57558151,663.49,661.86,0.3021787]
[1740133897054,0.30144088,663.48,661.86,0.3021787]
[1740133902158,2.23537029,663.47,661.86,0.3021787]
[1740133902662,3.41141137,663.46,661.86,0.3021787]
[1740133902862,3.41141591,663.45,661.86,0.3021787]
[1740133903062,3.1099614,663.44,661.86,0.3021787]
[1740133903261,3.411425,663.43,661.86,0.3021787]
[1740133903461,3.41142954,663.42,661.86,0.3021787]
[1740133903661,3.41143409,663.41,661.86,0.3021787]
[1740133903857,3.1099614,663.4,661.86,0.3021787]
[1740133904062,3.1099614,663.39,661.86,0.3021787]
[1740133904266,0.30149087,663.37,661.86,0.3021787]
[1740133904461,3.1099614,663.36,661.86,0.3021787]
[1740133904760,3.41146136,663.35,661.86,0.3021787]
[1740133904962,3.4114659,663.34,661.86,0.3021787]
[1740133905162,3.41147045,663.33,661.86,0.3021787]
[1740133905464,3.41147499,663.32,661.86,0.3021787]
[1740133905666,3.41147954,663.31,661.86,0.3021787]
[1740133905867,2.23537029,663.34,661.86,0.3021787]
[1740133905868,3.41148408,663.3,661.86,0.3021787]
[1740133906062,3.41148863,663.29,661.86,0.3021787]
[1740133906266,3.41149318,663.28,661.86,0.3021787]
[1740133906466,3.41149772,663.27,661.86,0.3021787]
[1740133906666,3.41150227,663.26,661.86,0.3021787]
[1740133906867,3.41150682,663.25,661.86,0.3021787]
[1740133907059,3.41151136,663.24,661.86,0.3021787]
[1740133907262,5.6468862,663.23,661.86,0.3021787]
[1740133907459,3.41152046,663.22,661.86,0.3021787]
[1740133907760,3.411525,663.21,661.86,0.3021787]
[1740133907966,3.41152955,663.2,661.86,0.3021787]
[1740133908263,3.4115341,663.19,661.86,0.3021787]
[1740133908465,3.41153864,663.18,661.86,0.3021787]
[1740133908667,0.30158179,663.17,661.86,0.3021787]
[1740133910961,1.57568851,663.16,661.86,0.3021787]
[1740133911167,1.87727485,663.16,661.86,0.3021787]
[1740133917664,2.23562328,663.15,661.86,0.3021787]
[1740133918467,1.87727485,663.16,661.86,0.3021787]
[1740133920073,2.2363525,663.15,661.86,0.3021787]
[1740133921466,2.2363525,663.14,661.86,0.3021787]
[1740133922772,2.2363525,663.13,661.86,0.3021787]
[1740133923573,1.87727485,663.16,661.86,0.3021787]
[1740133923770,1.57568851,663.16,661.86,0.3021787]
[1740133924874,1.57568851,663.16,661.92,1.10003851]
[1740133925373,1.57568851,663.16,661.94,0.30214218]
[1740133951098,2.23625736,663.15,661.94,0.30214218]
[1740133952499,1.57568851,663.16,661.94,0.30214218]
[1740133953499,3.12232623,663.15,661.94,0.30214218]
[1740133953695,3.12232623,663.14,661.94,0.30214218]
[1740133953898,3.12232623,663.13,661.94,0.30214218]
[1740133954100,3.12232623,663.12,661.94,0.30214218]
[1740133954300,3.12232623,663.11,661.94,0.30214218]
[1740133954501,3.12232623,663.1,661.94,0.30214218]
[1740133954698,5.36122047,663.09,661.94,0.30214218]
[1740133954902,3.12232623,663.08,661.94,0.30214218]
[1740133955107,3.12232623,663.07,661.94,0.30214218]
[1740133955404,3.12232623,663.06,661.94,0.30214218]
[1740133955605,3.12232623,663.05,661.94,0.30214218]
[1740133955809,2.23889424,663.09,661.94,0.30214218]
[1740133956004,2.23889424,663.04,661.94,0.30214218]
[1740133958107,2.23889424,663.03,661.94,0.30214218]
[1740133958909,2.23889424,663.03,661.97,1.10003851]
[1740133959205,2.23889424,663.03,661.98,0.30212393]
[1740133959406,3.12315769,663.02,661.98,0.30212393]
[1740133959602,2.23889424,663.01,661.98,0.30212393]
[1740133960905,1.245,663.27,661.98,0.30212393]
[1740133961103,3.42527063,663.26,661.98,0.30212393]
[1740133961309,3.12372976,663.25,661.98,0.30212393]
[1740133961506,3.12372976,663.24,661.98,0.30212393]
[1740133961709,3.42528427,663.23,661.98,0.30212393]
[1740133961903,3.42528882,663.22,661.98,0.30212393]
[1740133962108,3.42529336,663.21,661.98,0.30212393]
[1740133962310,0.30156815,663.2,661.98,0.30212393]
[1740133962810,3.12372976,663.19,661.98,0.30212393]
[1740133963005,3.12372976,663.18,661.98,0.30212393]
[1740133963204,3.42531155,663.17,661.98,0.30212393]
[1740133963409,2.23889424,663.23,661.98,0.30212393]
[1740133963410,5.66421034,663.16,661.98,0.30212393]
[1740133963606,3.42532065,663.15,661.98,0.30212393]
[1740133963807,3.42532519,663.14,661.98,0.30212393]
[1740133964012,3.12372976,663.13,661.98,0.30212393]
[1740133964213,3.42533429,663.12,661.98,0.30212393]
[1740133964408,0.30160908,663.11,661.98,0.30212393]
[1740133965306,2.23889424,663.1,661.55,1.10003851]
[1740133965606,0.30162273,663.08,661.55,1.10003851]
[1740133966618,0.30162273,663.08,661.37,1.10003851]
[1740133966813,0.30162273,663.08,661.38,0.30239801]
[1740133969909,2.23889424,663.07,661.38,0.30239801]
[1740133970114,0.30163637,663.05,661.38,0.30239801]
[1740133972012,2.23889424,663.04,661.38,0.30239801]
[1740133972409,0.30165002,663.02,661.38,0.30239801]
[1740133974116,2.23889424,663.01,661.38,0.30239801]
[1740133974318,0.30166367,662.99,661.38,0.30239801]
[1740133975719,1.57714053,662.98,661.38,0.30239801]
[1740133978420,0.30167732,662.96,661.38,0.30239801]
[1740133986127,2.23889424,662.95,661.38,0.30239801]
[1740133986326,0.30169097,662.93,661.38,0.30239801]
[1740133988122,2.23889424,662.92,661.38,0.30239801]
[1740133988323,0.30170007,662.91,661.38,0.30239801]
[1740133988828,1.57737882,662.9,661.38,0.30239801]
[1740133989129,0.30170918,662.89,661.38,0.30239801]
[1740133991429,2.23889424,662.88,661.38,0.30239801]
[1740133991631,0.30171828,662.87,661.38,0.30239801]
[1740133992330,3.10596917,662.86,661.38,0.30239801]
[1740133992529,3.40769655,662.85,661.38,0.30239801]
[1740133992729,3.10596917,662.84,661.38,0.30239801]
[1740133992930,3.10596917,662.83,661.38,0.30239801]
[1740133993125,3.10596917,662.82,661.38,0.30239801]
[1740133993324,3.40771476,662.81,661.38,0.30239801]
[1740133993529,3.40771932,662.8,661.38,0.30239801]
[1740133993727,3.40772387,662.79,661.38,0.30239801]
[1740133994032,0.30175925,662.78,661.38,0.30239801]
[1740133994225,2.54065349,662.78,661.38,0.30239801]
[1740133995533,2.23889424,662.77,661.38,0.30239801]
[1740133995732,0.30176836,662.76,661.38,0.30239801]
[1740133996626,1.109,662.75,661.38,0.30239801]
[1740133996835,3.34789424,662.75,661.38,0.30239801]
[1740133998132,2.23889424,662.74,661.38,0.30239801]
[1740133999133,1.57714648,662.73,661.38,0.30239801]
[1740134009139,2.22349914,662.72,661.38,0.30239801]
[1740134010341,2.22349914,662.71,661.38,0.30239801]
[1740134011840,2.22349914,662.7,661.38,0.30239801]
[1740134013243,5.33058569,662.69,661.38,0.30239801]
[1740134013444,2.22349914,662.69,661.38,0.30239801]
[1740134014644,2.22349914,662.68,661.38,0.30239801]
[1740134015847,2.22349914,662.67,661.38,0.30239801]
[1740134016447,1.57684872,662.66,661.38,0.30239801]
[1740134017351,2.22349914,662.65,661.38,0.30239801]
[1740134018650,1.57684872,662.66,661.38,0.30239801]
[1740134019853,2.22349914,662.65,661.38,0.30239801]
[1740134021448,2.22349914,662.64,661.38,0.30239801]
[1740134023150,2.22349914,662.63,661.38,0.30239801]
[1740134024356,2.22349914,662.62,661.38,0.30239801]
[1740134025150,3.13053633,662.61,661.38,0.30239801]
[1740134025350,3.13053633,662.6,661.38,0.30239801]
[1740134025652,5.35403547,662.59,661.38,0.30239801]
[1740134025857,2.22349914,662.59,661.38,0.30239801]
[1740134026051,3.13062709,662.58,661.38,0.30239801]
[1740134026254,3.13062709,662.57,661.38,0.30239801]
[1740134026452,3.13062709,662.56,661.38,0.30239801]
[1740134026652,3.13062709,662.55,661.38,0.30239801]
[1740134026858,2.22349914,662.54,661.38,0.30239801]
[1740134027858,3.13075055,662.53,661.38,0.30239801]
[1740134028059,3.13075055,662.52,661.38,0.30239801]
[1740134028255,3.13075055,662.51,661.38,0.30239801]
[1740134028454,3.13075055,662.5,661.38,0.30239801]
[1740134028658,3.13075055,662.49,661.38,0.30239801]
[1740134028859,3.13075055,662.48,661.38,0.30239801]
[1740134029060,3.13075055,662.47,661.38,0.30239801]
[1740134029261,2.22349914,662.53,661.38,0.30239801]
[1740134029461,3.13099258,662.52,661.38,0.30239801]
[1740134029662,3.13099258,662.51,661.38,0.30239801]
[1740134029862,2.22349914,662.52,661.38,0.30239801]
[1740134032165,2.22349914,662.51,661.38,0.30239801]
[1740134033366,2.22349914,662.5,661.38,0.30239801]
[1740134035467,2.22349914,662.49,661.38,0.30239801]
[1740134037170,2.22349914,662.48,661.38,0.30239801]
[1740134038270,2.22349914,662.47,661.38,0.30239801]
[1740134039472,0.905,662.72,661.38,0.30239801]
[1740134039473,2.22349914,662.46,661.38,0.30239801]
[1740134041377,2.22349914,662.45,661.38,0.30239801]
[1740134042772,3.13106683,662.7,661.38,0.30239801]
[1740134042973,3.13106683,662.69,661.38,0.30239801]
[1740134043171,5.37674797,662.68,661.38,0.30239801]
[1740134043373,3.13106683,662.67,661.38,0.30239801]
[1740134043570,3.13106683,662.66,661.38,0.30239801]
[1740134043776,3.13106683,662.67,661.38,0.30239801]
[1740134043977,3.13106683,662.66,661.38,0.30239801]
[1740134044178,3.13106683,662.65,661.38,0.30239801]
[1740134044377,3.13106683,662.64,661.38,0.30239801]
[1740134044575,3.13106683,662.63,661.38,0.30239801]
[1740134044777,2.24568114,662.63,661.38,0.30239801]
[1740134044974,2.24568114,662.63,661.14,1.10003851]
[1740134045171,0.30183667,662.61,661.14,1.10003851]
[1740134045577,0.30183667,662.61,661.05,1.10003851]
[1740134045777,0.30183667,662.61,661.05,1.40258748]
[1740134047781,0.30183667,662.61,661.06,0.30254439]
[1740134052882,2.24568114,662.6,661.06,0.30254439]
[1740134053088,0.30185034,662.58,661.06,0.30254439]
[1740134053688,1.57808816,662.57,661.06,0.30254439]
[1740134053883,0.30186401,662.55,661.06,0.30254439]
[1740134054287,0.982,662.54,661.06,0.30254439]
[1740134054483,3.12365142,662.53,661.06,0.30254439]
[1740134054785,3.12365142,662.52,661.06,0.30254439]
[1740134054988,0.982,662.54,661.06,0.30254439]
[1740134054989,3.12365142,662.51,661.06,0.30254439]
[1740134055191,3.12365142,662.5,661.06,0.30254439]
[1740134055488,3.12365142,662.49,661.06,0.30254439]
[1740134055683,3.12365142,662.48,661.06,0.30254439]
[1740134055891,3.12365142,662.47,661.06,0.30254439]
[1740134056091,3.12365142,662.46,661.06,0.30254439]
[1740134056291,3.12365142,662.45,661.06,0.30254439]
[1740134056485,3.12365142,662.44,661.06,0.30254439]
[1740134056689,3.12365142,662.43,661.06,0.30254439]
[1740134056889,3.42557467,662.42,661.06,0.30254439]
[1740134057095,3.12365142,662.41,661.06,0.30254439]
[1740134057294,3.12365142,662.4,661.06,0.30254439]
[1740134057589,0.30194148,662.38,661.06,0.30254439]
[1740134058289,3.12365142,662.37,661.06,0.30254439]
[1740134058489,0.30195515,662.35,661.06,0.30254439]
[1740134058684,3.12365142,662.34,661.06,0.30254439]
[1740134058885,0.30195515,662.35,661.06,0.30254439]
[1740134059088,3.12365142,662.34,661.06,0.30254439]
[1740134059285,3.12365142,662.33,661.06,0.30254439]
[1740134059492,3.12365142,662.32,660.19,1.10003851]
[1740134059691,3.12365142,662.31,660.21,0.30293391]
[1740134059891,0.30198251,662.29,660.21,0.30293391]
[1740134060091,3.12365142,662.28,660.21,0.30293391]
[1740134060288,3.12365142,662.27,660.21,0.30293391]
[1740134060492,0.30198251,662.29,660.21,0.30293391]
[1740134060493,3.12365142,662.26,660.21,0.30293391]
[1740134060694,3.42565217,662.25,660.21,0.30293391]
[1740134060891,5.36933256,662.24,660.21,0.30293391]
[1740134061093,3.42566129,662.23,660.21,0.30293391]
[1740134061289,3.12365142,662.22,660.21,0.30293391]
[1740134061487,0.30202355,662.2,660.21,0.30293391]
[1740134061794,3.12365142,662.19,660.21,0.30293391]
[1740134061990,0.30203724,662.17,660.21,0.30293391]
[1740134062194,3.12365142,662.16,660.21,0.30293391]
[1740134062498,3.42569778,662.15,660.21,0.30293391]
[1740134062797,3.42570234,662.14,660.21,0.30293391]
[1740134062994,3.12365142,662.13,660.21,0.30293391]
[1740134063194,3.42571146,662.12,660.21,0.30293391]
[1740134063395,3.42571603,662.11,660.21,0.30293391]
[1740134063596,0.30207373,662.09,660.21,0.30293391]
[1740134063793,3.12365142,662.08,660.21,0.30293391]
[1740134063992,3.12365142,662.07,660.21,0.30293391]
[1740134064193,3.42573884,662.06,660.21,0.30293391]
[1740134064394,3.4257434,662.05,660.21,0.30293391]
[1740134064595,3.42574797,662.04,660.21,0.30293391]
[1740134064797,3.42575253,662.03,660.21,0.30293391]
[1740134065099,3.42575709,662.02,660.21,0.30293391]
[1740134065296,3.12365142,662.01,660.21,0.30293391]
[1740134065497,3.42576622,662.0,660.21,0.30293391]
[1740134065691,3.42577078,661.99,660.21,0.30293391]
[1740134065897,2.24568114,662.0,660.21,0.30293391]
[1740134065898,3.42577535,661.98,660.21,0.30293391]
[1740134066196,0.30212849,661.97,660.21,0.30293391]
[1740134070592,0.28836053,661.97,660.21,0.30293391]
[1740134074196,1.5788041,661.96,660.21,0.30293391]
[1740134079812,1.396,661.95,660.21,0.30293391]
[1740134082617,1.396,661.95,660.47,1.10003851]
[1740134082813,1.396,661.95,660.49,0.30280549]
[1740134084517,1.396,661.95,660.65,1.10003851]
[1740134084711,1.396,661.95,660.67,0.30272299]
[1740134104831,1.396,661.95,660.73,1.10003851]
[1740134105034,1.396,661.95,660.75,0.30268634]
[1740134105830,1.5788041,661.96,660.75,0.30268634]
[1740134109839,1.261,662.11,660.75,0.30268634]
[1740134111542,2.23648743,662.1,660.75,0.30268634]
[1740134112438,1.261,662.11,660.75,0.30268634]
[1740134112640,1.261,662.11,660.98,1.10003851]
[1740134112944,1.261,662.11,661.0,0.30257186]
[1740134124954,1.261,662.11,661.03,1.10003851]
[1740134125155,1.261,662.11,661.05,0.30254897]
[1740134135155,3.11470933,663.06,661.05,0.30254897]
[1740134135358,0.30164092,663.04,661.05,0.30254897]
[1740134135559,3.11470933,663.03,661.05,0.30254897]
[1740134135754,0.30165457,663.01,661.05,0.30254897]
[1740134136058,3.11470933,663.0,661.05,0.30254897]
[1740134136258,0.30166822,662.98,661.05,0.30254897]
[1740134136458,3.11470933,662.97,661.05,0.30254897]
[1740134136660,3.41638665,662.96,661.05,0.30254897]
[1740134136959,3.4163912,662.95,661.05,0.30254897]
[1740134137154,3.41639575,662.94,661.05,0.30254897]
[1740134137352,3.4164003,662.93,661.05,0.30254897]
[1740134137659,3.41640485,662.92,661.05,0.30254897]
[1740134137958,3.4164094,662.91,661.05,0.30254897]
[1740134138158,3.11470933,662.9,661.05,0.30254897]
[1740134138356,3.41641851,662.89,661.05,0.30254897]
[1740134138552,3.11470933,662.88,661.05,0.30254897]
[1740134138758,3.41642761,662.87,661.05,0.30254897]
[1740134139059,3.41643216,662.86,661.05,0.30254897]
[1740134139259,3.11470933,662.85,661.05,0.30254897]
[1740134139455,3.11470933,662.84,661.05,0.30254897]
[1740134139657,3.11470933,662.83,661.05,0.30254897]
[1740134139855,3.11470933,662.82,661.05,0.30254897]
[1740134140053,3.11470933,662.81,661.05,0.30254897]
[1740134140256,3.11470933,662.8,661.22,1.10003851]
[1740134140458,3.11470933,662.79,661.22,1.10003851]
[1740134140655,3.11470933,662.78,661.24,0.30246204]
[1740134140855,3.11470933,662.77,661.24,0.30246204]
[1740134141063,3.11470933,662.76,661.24,0.30246204]
[1740134141261,3.11470933,662.75,661.24,0.30246204]
[1740134141458,3.11470933,662.74,661.24,0.30246204]
[1740134141655,3.11470933,662.73,661.24,0.30246204]
[1740134141957,3.11470933,662.72,661.24,0.30246204]
[1740134142157,3.11470933,662.71,661.24,0.30246204]
[1740134142359,3.11470933,662.7,661.24,0.30246204]
[1740134142662,3.11470933,662.69,661.24,0.30246204]
[1740134142859,3.11470933,662.68,661.24,0.30246204]
[1740134143057,3.11470933,662.73,661.24,0.30246204]
[1740134143259,3.11470933,662.72,661.24,0.30246204]
[1740134143460,3.11470933,662.71,661.24,0.30246204]
[1740134143660,3.11470933,662.7,661.24,0.30246204]
[1740134143862,3.11470933,662.71,661.24,0.30246204]
[1740134144864,2.23547036,662.72,661.24,0.30246204]
[1740134145662,2.23547036,662.71,661.24,0.30246204]
[1740134146666,3.11491089,662.7,661.24,0.30246204]
[1740134146862,2.23547036,662.69,661.24,0.30246204]
[1740134148164,2.23547036,662.68,661.24,0.30246204]
[1740134149671,0.30172283,662.86,661.24,0.30246204]
[1740134150071,2.23350823,662.85,661.24,0.30246204]
[1740134151567,2.23350823,662.84,661.24,0.30246204]
[1740134152973,2.53524472,662.83,661.24,0.30246204]
[1740134153367,0.30174104,662.82,661.24,0.30246204]
[1740134154973,2.23350823,662.81,661.24,0.30246204]
[1740134155169,0.30175015,662.8,661.24,0.30246204]
[1740134155373,3.11475272,662.79,661.24,0.30246204]
[1740134155576,3.41651197,662.78,661.24,0.30246204]
[1740134155872,3.41651652,662.77,661.24,0.30246204]
[1740134156077,0.30176836,662.76,661.24,0.30246204]
[1740134156576,2.23350823,662.75,661.24,0.30246204]
[1740134156777,3.41539955,662.74,661.24,0.30246204]
[1740134156979,3.11362209,662.73,661.24,0.30246204]
[1740134157276,3.11362209,662.72,661.24,0.30246204]
[1740134157477,3.11362209,662.71,661.24,0.30246204]
[1740134157672,3.11362209,662.7,661.24,0.30246204]
[1740134157877,3.11362209,662.69,661.24,0.30246204]
[1740134158074,3.11362209,662.68,661.24,0.30246204]
[1740134158271,3.11362209,662.67,661.24,0.30246204]
[1740134158576,3.11362209,662.66,661.24,0.30246204]
[1740134158776,3.11362209,662.65,661.24,0.30246204]
[1740134158976,3.11362209,662.64,661.24,0.30246204]
[1740134159176,3.11362209,662.63,661.24,0.30246204]
[1740134159378,3.11362209,662.62,661.24,0.30246204]
[1740134159679,3.11362209,662.61,661.24,0.30246204]
[1740134159878,3.11362209,662.6,661.24,0.30246204]
[1740134160079,3.11362209,662.59,661.24,0.30246204]
[1740134160280,5.34713032,662.58,661.24,0.30246204]
[1740134160480,3.11362209,662.57,661.24,0.30246204]
[1740134160680,2.23350823,662.58,661.24,0.30246204]
[1740134161981,2.23350823,662.57,661.24,0.30246204]
[1740134163679,5.34881386,662.56,661.24,0.30246204]
[1740134163875,3.11530563,662.55,661.24,0.30246204]
[1740134164382,2.23350823,662.56,661.24,0.30246204]
[1740134165384,2.23350823,662.73,661.24,0.30246204]
[1740134165784,1.57718818,662.72,661.24,0.30246204]
[1740134166385,0.30179113,662.71,661.24,0.30246204]
[1740134166585,2.53529936,662.71,661.24,0.30246204]
[1740134166885,1.308,662.7,661.24,0.30246204]
[1740134167987,0.30180023,662.69,661.24,0.30246204]
[1740134168784,2.23350823,662.68,661.24,0.30246204]
[1740134169181,0.30180934,662.67,661.24,0.30246204]
[1740134170083,2.23350823,662.66,661.24,0.30246204]
[1740134170290,2.53532213,662.66,661.24,0.30246204]
[1740134171691,2.23350823,662.65,661.24,0.30246204]
[1740134173792,3.12462919,662.64,661.24,0.30246204]
[1740134173992,3.12462919,662.63,661.24,0.30246204]
[1740134174194,3.12462919,662.62,661.24,0.30246204]
[1740134174393,3.12462919,662.61,661.24,0.30246204]
[1740134174587,3.12462919,662.6,661.24,0.30246204]
[1740134174886,3.12462919,662.59,661.24,0.30246204]
[1740134175188,3.12462919,662.58,661.24,0.30246204]
[1740134175392,3.12462919,662.57,661.24,0.30246204]
[1740134175694,3.12462919,662.56,661.24,0.30246204]
[1740134175885,3.12462919,662.55,661.24,0.30246204]
[1740134176088,3.12462919,662.54,661.24,0.30246204]
[1740134176288,3.12462919,662.53,661.24,0.30246204]
[1740134176489,2.23350823,662.55,661.24,0.30246204]
[1740134177492,0.3018139,662.66,661.24,0.30246204]
[1740134185492,2.24164833,662.65,661.24,0.30246204]
[1740134186491,0.3018139,662.66,661.24,0.30246204]
[1740134188795,2.24035497,662.65,661.24,0.30246204]
[1740134190189,2.24035497,662.64,661.24,0.30246204]
[1740134190892,2.24035497,662.64,661.25,1.10003851]
[1740134191291,2.24035497,662.64,661.27,0.30244831]
[1740134191595,0.3018139,662.66,661.27,0.30244831]
[1740134194094,1.132,662.65,661.27,0.30244831]
[1740134197796,2.23754507,662.64,661.27,0.30244831]
[1740134199604,1.132,662.65,661.27,0.30244831]
[1740134199808,1.132,662.65,661.36,1.10003851]
[1740134200105,1.57683086,662.64,661.37,0.30240258]
[1740134211919,3.11937148,662.63,661.37,0.30240258]
[1740134212121,3.11937148,662.62,661.37,0.30240258]
[1740134212320,3.11937148,662.61,661.37,0.30240258]
[1740134212516,3.11937148,662.6,661.37,0.30240258]
[1740134212724,3.11937148,662.59,661.37,0.30240258]
[1740134212921,3.11937148,662.58,661.37,0.30240258]
[1740134213123,3.11937148,662.57,661.37,0.30240258]
[1740134213317,3.11937148,662.56,661.37,0.30240258]
[1740134213519,3.11937148,662.55,661.37,0.30240258]
[1740134213716,3.11937148,662.54,661.37,0.30240258]
[1740134213922,3.11937148,662.53,661.37,0.30240258]
[1740134214119,3.11937148,662.52,661.37,0.30240258]
[1740134214319,3.11937148,662.51,661.37,0.30240258]
[1740134214520,3.11937148,662.5,661.37,0.30240258]
[1740134214722,3.11937148,662.49,661.37,0.30240258]
[1740134214923,5.35691655,662.48,661.37,0.30240258]
[1740134215223,3.11937148,662.47,661.37,0.30240258]
[1740134215418,3.11937148,662.46,661.37,0.30240258]
[1740134215617,3.11937148,662.45,661.37,0.30240258]
[1740134215821,3.11937148,662.44,661.37,0.30240258]
[1740134216020,2.23754507,662.45,661.37,0.30240258]
[1740134217130,1.57709288,662.56,661.37,0.30240258]
[1740134217622,2.23775809,662.55,661.37,0.30240258]
[1740134219320,2.23775809,662.54,661.37,0.30240258]
[1740134220424,3.12020729,662.53,661.37,0.30240258]
[1740134220625,2.23775809,662.54,661.37,0.30240258]
[1740134220825,5.35797689,662.53,661.37,0.30240258]
[1740134221025,2.23775809,662.53,661.37,0.30240258]
[1740134221827,2.23775809,662.52,661.37,0.30240258]
[1740134223434,2.23775809,662.51,661.37,0.30240258]
[1740134225034,2.23775809,662.5,661.37,0.30240258]
[1740134225435,3.12020048,662.49,661.37,0.30240258]
[1740134225635,3.12020048,662.48,661.37,0.30240258]
[1740134225932,3.12020048,662.47,661.37,0.30240258]
[1740134226135,1.57737286,662.49,661.37,0.30240258]
[1740134226332,3.12016224,662.48,661.37,0.30240258]
[1740134226536,3.12016224,662.47,661.37,0.30240258]
[1740134226735,3.12016224,662.46,661.37,0.30240258]
[1740134226935,3.12016224,662.45,661.37,0.30240258]
[1740134227237,3.12016224,662.44,661.37,0.30240258]
[1740134227435,3.12016224,662.43,661.37,0.30240258]
[1740134227634,3.12016224,662.42,661.37,0.30240258]
[1740134227833,2.23775809,662.42,661.37,0.30240258]
[1740134229630,2.23775809,662.41,661.37,0.30240258]
[1740134231035,2.23775809,662.4,661.37,0.30240258]
[1740134232632,1.57737286,662.49,661.37,0.30240258]
[1740134233234,2.23744525,662.48,661.37,0.30240258]
[1740134234736,1.57737286,662.49,661.37,0.30240258]
[1740134234737,2.23744525,662.47,661.37,0.30240258]
[1740134235637,2.23744525,662.46,661.37,0.30240258]
[1740134237238,1.57737286,662.49,661.37,0.30240258]
[1740134237838,2.23727809,662.48,661.37,0.30240258]
[1740134238639,3.11931799,662.47,661.37,0.30240258]
[1740134238836,2.23727809,662.48,661.37,0.30240258]
[1740134239036,3.11913787,662.47,661.37,0.30240258]
[1740134239235,2.23727809,662.48,661.37,0.30240258]
[1740134239436,2.23727809,662.46,661.37,0.30240258]
[1740134241042,1.57737286,662.49,661.37,0.30240258]
[1740134258152,3.11853975,663.11,661.37,0.30240258]
[1740134258352,2.23760346,663.09,661.37,0.30240258]
[1740134258744,0.30162273,663.08,661.37,0.30240258]
[1740134259750,2.23760346,663.07,661.37,0.30240258]
[1740134259950,0.30163182,663.06,661.37,0.30240258]
[1740134262855,2.23760346,663.05,661.37,0.30240258]
[1740134263154,0.30164092,663.04,661.37,0.30240258]
[1740134263752,2.23760346,663.03,661.37,0.30240258]
[1740134263953,0.30165002,663.02,661.37,0.30240258]
[1740134265756,2.23760346,663.01,661.37,0.30240258]
[1740134265956,0.30165912,663.0,661.37,0.30240258]
[1740134266657,1.5764975,662.99,661.37,0.30240258]
[1740134266956,0.30166822,662.98,661.37,0.30240258]
[1740134270661,2.23760346,662.97,661.37,0.30240258]
[1740134270857,0.30167732,662.96,661.37,0.30240258]
[1740134271958,0.938,662.95,661.37,0.30240258]
[1740134272256,1.23968187,662.95,661.37,0.30240258]
[1740134272454,2.23760346,662.94,661.37,0.30240258]
[1740134273859,0.30169097,662.93,661.37,0.30240258]
[1740134274456,3.11868457,662.92,661.37,0.30240258]
[1740134274655,3.11868457,662.91,661.37,0.30240258]
[1740134274854,3.4203892,662.9,661.37,0.30240258]
[1740134275161,3.42039375,662.89,661.37,0.30240258]
[1740134275360,3.4203983,662.88,661.37,0.30240258]
[1740134275555,5.65800631,662.87,661.37,0.30240258]
[1740134275764,3.4204074,662.86,661.37,0.30240258]
[1740134275956,3.42041195,662.85,661.37,0.30240258]
[1740134276263,3.42041651,662.84,661.37,0.30240258]
[1740134276462,3.11868457,662.83,661.37,0.30240258]
[1740134276659,3.11868457,662.82,661.37,0.30240258]
[1740134276854,3.11868457,662.81,661.37,0.30240258]
[1740134277056,3.11868457,662.8,661.37,0.30240258]
[1740134277256,3.11868457,662.79,661.37,0.30240258]
[1740134277459,3.11868457,662.78,661.37,0.30240258]
[1740134277659,3.11868457,662.77,661.37,0.30240258]
[1740134277859,3.11868457,662.76,661.37,0.30240258]
[1740134278060,3.11868457,662.75,661.37,0.30240258]
[1740134278262,3.11868457,662.74,661.37,0.30240258]
[1740134278462,3.11868457,662.73,661.37,0.30240258]